fUST/lending_fUST_20240501
["ID","MTS","AMOUNT","RATE_DAILY","PERIOD"]
[325181259,1714551077428,-500.0,0.00065753,120]
[325181260,1714551077440,-1002.97,0.00065753,120]
[325181261,1714551077449,-500.0,0.00065753,120]
[325181262,1714551077458,-402.3131842,0.00065753,120]
[325181263,1714551077468,-500.0,0.00065753,120]
[325181264,1714551077477,-448.50081179,0.00065753,120]
[325181265,1714551077487,-500.0,0.00065753,120]
[325181266,1714551077497,-500.0,0.00065753,120]
[325181267,1714551077506,-4739.82,0.00065753,120]
[325181268,1714551077515,-500.0,0.00065753,120]
[325181269,1714551077524,-500.0,0.00065753,120]
[325181270,1714551077534,-500.0,0.00065753,120]
[325181271,1714551077543,-501.87953849,0.00065753,120]
[325181272,1714551077552,-500.0,0.00065753,120]
[325181273,1714551077561,-500.0,0.00065753,120]
[325181274,1714551077570,-500.0,0.00065753,120]
[325181275,1714551077580,-1930.84,0.00065753,120]
[325181276,1714551077589,-500.0,0.00065753,120]
[325181277,1714551077597,-1194.01,0.00065753,120]
[325181278,1714551077605,-500.0,0.00065753,120]
[325181279,1714551077614,-500.0,0.00065753,60]
[325181280,1714551077624,-500.0,0.00065753,120]
[325181281,1714551077634,-500.0,0.00065753,120]
[325181282,1714551077643,-500.0,0.00065753,120]
[325181283,1714551077653,-500.0,0.00065753,120]
[325181284,1714551077662,-500.0,0.00065753,120]
[325181285,1714551077672,-500.0,0.00065753,120]
[325181286,1714551077681,-1311.94,0.00065753,120]
[325181287,1714551077693,-843.84,0.00065753,120]
[325181288,1714551077706,-500.0,0.00065753,120]
[325181289,1714551077716,-501.12280581,0.00065753,120]
[325181290,1714551077726,-500.0,0.00065753,120]
[325181291,1714551077735,-452.94313312,0.00065753,120]
[325181292,1714551077744,-500.0,0.00065753,120]
[325181293,1714551077756,-500.0,0.00065753,120]
[325181294,1714551077766,-500.0,0.00065753,120]
[325181295,1714551077775,-500.0,0.00065753,120]
[325181296,1714551077785,-500.0,0.00065753,120]
[325181297,1714551077795,-500.0,0.00065753,120]
[325181298,1714551077805,-500.0,0.00065753,120]
[325181299,1714551077813,-500.0,0.00065753,120]
[325181300,1714551077823,-1833.01,0.00065753,120]
[325181301,1714551077832,-500.0,0.00065753,120]
[325181302,1714551077842,-500.0,0.00065753,120]
[325181303,1714551077852,-500.0,0.00065753,120]
[325181304,1714551077862,-500.0,0.00065753,120]
[325181305,1714551077871,-500.0,0.00065753,120]
[325181306,1714551077882,-500.0,0.00065753,120]
[325181307,1714551077894,-500.0,0.00065753,120]
[325181308,1714551077903,-8858.35,0.00065753,120]
[325181309,1714551077913,-3795.82,0.00065753,120]
[325181310,1714551077922,-618.34062647,0.00065753,120]
[325181311,1714551077931,-500.0,0.00065753,120]
[325181312,1714551077943,-503.00876315,0.00065753,120]
[325181313,1714551077954,-2186.1,0.00065753,120]
[325181314,1714551077965,-500.0,0.00065753,120]
[325181315,1714551077974,-501.86588289,0.00065753,120]
[325181316,1714551077983,-500.0,0.00065753,120]
[325181317,1714551077993,-500.0,0.00065753,120]
[325181318,1714551078002,-500.0,0.00065753,120]
[325181319,1714551078012,-500.0,0.00065753,120]
[325181320,1714551078021,-500.0,0.00065753,60]
[325181321,1714551078030,-13472.56,0.00065753,120]
[325181322,1714551078039,-500.0,0.00065753,120]
[325181323,1714551078048,-18297.18,0.00065753,120]
[325181324,1714551078058,-500.0,0.00065753,120]
[325181325,1714551078067,-500.0,0.00065753,120]
[325181326,1714551078077,-376.85810648,0.00065753,120]
[325181327,1714551078086,-500.0,0.00065753,120]
[325181328,1714551078096,-500.0,0.00065753,120]
[325181329,1714551078105,-833.3,0.00065753,21]
[325181330,1714551078114,-501.53059385,0.00065753,120]
[325181331,1714551078123,-518.91,0.00065753,7]
[325181332,1714551078133,-500.0,0.00065753,120]
[325181333,1714551078141,-1015.92,0.00065753,120]
[325181334,1714551078150,-500.0,0.00065753,120]
[325181335,1714551078160,-5563.83,0.00065753,2]
[325181336,1714551078169,-5563.83,0.00065753,2]
[325181337,1714551078178,-5563.83,0.00065753,2]
[325181338,1714551078193,-5563.83,0.00065753,2]
[325181339,1714551078207,-5563.83,0.00065753,2]
[325181340,1714551078221,-5563.83,0.00065753,2]
[325181341,1714551078233,-151.0,0.00066082,120]
[325181342,1714551078246,-3000.0,0.00066173,120]
[325181343,1714551078261,-1484.39,0.00066575,120]
[325181344,1714551078276,-151.0,0.00066685,120]
[325181345,1714551078291,-160.590219,0.00066685,2]
[325181346,1714551078307,-3000.0,0.00066783,120]
[325181347,1714551078321,-625.13533192,0.00066994,120]
[325181348,1714551078335,-1000.0,0.00067,67]
[325181349,1714551078351,-172.730414,0.00067288,2]
[325181350,1714551078365,-151.0,0.00067288,120]
[325181351,1714551078376,-3000.0,0.00067395,120]
[325181352,1714551078389,-1484.39,0.00067397,120]
[325181353,1714551078402,-1000.0,0.00067596,60]
[325181354,1714551078416,-151.0,0.0006789,120]
[325181355,1714551078429,-13830.65239401,0.00067997,120]
[325181356,1714551078447,-1000.0,0.00068,68]
[325181357,1714551078462,-599.294732,0.00068205,2]
[325181358,1714551078474,-344.904806,0.00068205,2]
[325181359,1714551078486,-1484.39,0.00068219,120]
[325181360,1714551078498,-1000.0,0.00068346,60]
[325181361,1714551078513,-500.0,0.00068493,120]
[325181362,1714551078527,-500.0,0.00068493,120]
[325181363,1714551078539,-500.0,0.00068493,120]
[325181364,1714551078552,-680.26,0.00068493,120]
[325181365,1714551078565,-500.0,0.00068493,120]
[325181366,1714551078577,-500.0,0.00068493,120]
[325181367,1714551078590,-500.0,0.00068493,120]
[325181368,1714551078601,-500.0,0.00068493,120]
[325181369,1714551078614,-500.0,0.00068493,120]
[325181370,1714551078625,-500.0,0.00068493,120]
[325181371,1714551078637,-500.0,0.00068493,120]
[325181372,1714551078650,-384.70665081,0.00068493,120]
[325181373,1714551078662,-500.0,0.00068493,120]
[325181374,1714551078675,-500.0,0.00068493,120]
[325181375,1714551078689,-500.0,0.00068493,120]
[325181376,1714551078703,-500.0,0.00068493,120]
[325181377,1714551078713,-500.0,0.00068493,120]
[325181378,1714551078725,-500.0,0.00068493,120]
[325181379,1714551078738,-340.58819641,0.00068493,120]
[325181380,1714551078750,-503.90873866,0.00068493,120]
[325181381,1714551078762,-500.0,0.00068493,120]
[325181382,1714551078775,-500.0,0.00068493,120]
[325181383,1714551078786,-500.0,0.00068493,120]
[325181384,1714551078797,-396.33412377,0.00068493,120]
[325181385,1714551078812,-500.0,0.00068493,120]
[325181386,1714551078824,-500.0,0.00068493,120]
[325181387,1714551078835,-500.0,0.00068493,120]
[325181388,1714551078847,-500.0,0.00068493,120]
[325181389,1714551078859,-500.0,0.00068493,120]
[325181390,1714551078871,-500.0,0.00068493,120]
[325181391,1714551078882,-888.73,0.00068493,2]
[325181392,1714551078894,-500.0,0.00068493,120]
[325181393,1714551078906,-503.76739879,0.00068493,120]
[325181394,1714551078918,-500.0,0.00068493,120]
[325181395,1714551078930,-500.0,0.00068493,120]
[325181396,1714551078948,-500.0,0.00068493,120]
[325181397,1714551078961,-500.0,0.00068493,120]
[325181398,1714551078973,-515.82,0.00068493,120]
[325181399,1714551078986,-500.0,0.00068493,120]
[325181400,1714551078999,-501.86196545,0.00068493,3]
[325181401,1714551079011,-502.60683939,0.00068493,120]
[325181402,1714551079023,-2055.92,0.00068493,120]
[325181403,1714551079036,-500.0,0.00068493,120]
[325181404,1714551079047,-500.0,0.00068493,120]
[325181405,1714551079059,-500.0,0.00068493,120]
[325181406,1714551079070,-500.0,0.00068493,120]
[325181407,1714551079082,-272.30821333,0.00068493,120]
[325181408,1714551079094,-500.0,0.00068493,120]
[325181409,1714551079105,-500.0,0.00068493,120]
[325181410,1714551079117,-1169.21,0.00068493,120]
[325181411,1714551079128,-500.0,0.00068493,120]
[325181412,1714551079140,-500.0,0.00068493,120]
[325181413,1714551079152,-500.0,0.00068493,120]
[325181414,1714551079164,-500.0,0.00068493,120]
[325181415,1714551079176,-500.0,0.00068493,120]
[325181416,1714551079191,-500.0,0.00068493,120]
[325181417,1714551079203,-502.58259059,0.00068493,120]
[325181418,1714551079214,-1562.95,0.00068493,120]
[325181419,1714551079225,-501.74569118,0.00068493,120]
[325181420,1714551079236,-503.80691186,0.00068493,120]
[325181421,1714551079247,-605.20638172,0.00068493,120]
[325181422,1714551079258,-500.0,0.00068493,120]
[325181423,1714551079269,-534.33654216,0.00068493,120]
[325181424,1714551079280,-500.0,0.00068493,120]
[325181425,1714551079292,-500.0,0.00068493,120]
[325181426,1714551079303,-1256.18,0.00068493,120]
[325181427,1714551079315,-501.41005815,0.00068493,120]
[325181428,1714551079326,-500.0,0.00068493,120]
[325181429,1714551079337,-500.0,0.00068493,120]
[325181430,1714551079348,-500.0,0.00068493,120]
[325181431,1714551079359,-500.0,0.00068493,120]
[325181432,1714551079370,-500.0,0.00068493,120]
[325181433,1714551079382,-500.0,0.00068493,120]
[325181434,1714551079393,-1164.34,0.00068493,120]
[325181435,1714551079404,-500.0,0.00068493,120]
[325181436,1714551079416,-501.61100896,0.00068493,120]
[325181437,1714551079427,-1166.09,0.00068493,120]
[325181438,1714551079442,-500.0,0.00068493,120]
[325181439,1714551079458,-500.0,0.00068493,2]
[325181440,1714551079470,-500.0,0.00068493,120]
[325181441,1714551079482,-500.0,0.00068493,120]
[325181442,1714551079493,-500.0,0.00068493,120]
[325181443,1714551079504,-330.1851767,0.00068493,120]
[325181444,1714551079515,-501.07657446,0.00068493,120]
[325181445,1714551079527,-502.16659497,0.00068493,120]
[325181446,1714551079539,-639.5,0.00068493,120]
[325181447,1714551079550,-500.87945794,0.00068493,120]
[325181448,1714551079561,-500.0,0.00068493,120]
[325181449,1714551079573,-500.0,0.00068493,120]
[325181450,1714551079584,-500.0,0.00068493,120]
[325181451,1714551079595,-500.0,0.00068493,120]
[325181452,1714551079793,-500.0,0.00068493,120]
[325181453,1714551079803,-500.0,0.00068493,120]
[325181454,1714551079814,-651.81,0.00068493,120]
[325181455,1714551079825,-500.0,0.00068493,120]
[325181456,1714551079834,-500.0,0.00068493,120]
[325181457,1714551079843,-500.0,0.00068493,120]
[325181458,1714551079852,-500.0,0.00068493,120]
[325181459,1714551079863,-581.06479433,0.00068493,120]
[325181460,1714551079872,-500.0,0.00068493,120]
[325181461,1714551079882,-500.0,0.00068493,120]
[325181462,1714551079891,-500.0,0.00068493,120]
[325181463,1714551079900,-500.0,0.00068493,120]
[325181464,1714551079909,-500.0,0.00068493,120]
[325181465,1714551079919,-1908.16,0.00068493,120]
[325181466,1714551079929,-500.0,0.00068493,120]
[325181467,1714551079943,-3348.19,0.00068493,2]
[325181468,1714551079953,-500.0,0.00068493,120]
[325181469,1714551079962,-500.0,0.00068493,120]
[325181470,1714551079971,-500.0,0.00068493,120]
[325181471,1714551079980,-500.0,0.00068493,120]
[325181472,1714551079989,-500.0,0.00068493,120]
[325181473,1714551079999,-504.81,0.00068493,120]
[325181474,1714551080008,-525.82,0.00068493,120]
[325181475,1714551080017,-311.85042846,0.00068493,120]
[325181476,1714551080027,-500.0,0.00068493,120]
[325181477,1714551080036,-501.03,0.00068493,120]
[325181478,1714551080046,-689.62,0.00068493,120]
[325181479,1714551080055,-500.0,0.00068493,120]
[325181480,1714551080064,-510.5,0.00068493,120]
[325181481,1714551080073,-500.0,0.00068493,120]
[325181482,1714551080082,-573.09157035,0.00068493,120]
[325181483,1714551080091,-593.66,0.00068493,120]
[325181484,1714551080101,-500.0,0.00068493,120]
[325181485,1714551080111,-500.0,0.00068493,120]
[325181486,1714551080121,-500.0,0.00068493,120]
[325181487,1714551080130,-500.0,0.00068493,120]
[325181488,1714551080139,-4092.200555,0.00068493,120]
[325181489,1714551080148,-500.0,0.00068493,120]
[325181490,1714551080158,-500.0,0.00068493,120]
[325181491,1714551080167,-4092.200546,0.00068493,120]
[325181492,1714551080176,-500.0,0.00068493,120]
[325181493,1714551080189,-500.0,0.00068493,120]
[325181494,1714551080199,-500.0,0.00068493,120]
[325181495,1714551080208,-2088.42,0.00068493,120]
[325181496,1714551080217,-598.99,0.00068493,120]
[325181497,1714551080226,-500.0,0.00068493,120]
[325181498,1714551080235,-500.0,0.00068493,120]
[325181499,1714551080244,-692.55,0.00068493,120]
[325181500,1714551080253,-500.0,0.00068493,120]
[325181501,1714551080262,-500.0,0.00068493,120]
[325181502,1714551080272,-500.0,0.00068493,120]
[325181503,1714551080281,-1121.83,0.00068493,120]
[325181504,1714551080290,-1588.77,0.00068493,120]
[325181505,1714551080300,-500.0,0.00068493,120]
[325181506,1714551080309,-500.0,0.00068493,120]
[325181507,1714551080318,-151.0,0.00068493,120]
[325181508,1714551080328,-557.85,0.00068493,120]
[325181509,1714551080337,-1507.86,0.00068493,120]
[325181510,1714551080346,-369.01831701,0.00068493,120]
[325181511,1714551080355,-500.0,0.00068493,120]
[325181512,1714551080364,-500.0,0.00068493,120]
[325181513,1714551080374,-682.62,0.00068493,120]
[325181514,1714551080384,-1785.66,0.00068493,120]
[325181515,1714551080393,-500.0,0.00068493,120]
[325181516,1714551080402,-500.0,0.00068493,120]
[325181517,1714551080412,-577.42,0.00068493,120]
[325181518,1714551080422,-500.0,0.00068493,120]
[325181519,1714551080431,-500.0,0.00068493,120]
[325181520,1714551080443,-952.28,0.00068493,120]
[325181521,1714551080452,-500.0,0.00068493,120]
[325181522,1714551080461,-500.0,0.00068493,120]
[325181523,1714551080471,-500.0,0.00068493,120]
[325181524,1714551080480,-500.0,0.00068493,120]
[325181525,1714551080490,-500.0,0.00068493,120]
[325181526,1714551080500,-500.0,0.00068493,120]
[325181527,1714551080509,-500.0,0.00068493,120]
[325181528,1714551080519,-301.49159764,0.00068493,120]
[325181529,1714551080529,-372.66724936,0.00068493,120]
[325181530,1714551080538,-6250.0,0.00068493,120]
[325181531,1714551080548,-424.90953,0.00068493,120]
[325181532,1714551080557,-500.0,0.00068493,120]
[325181533,1714551080566,-500.0,0.00068493,120]
[325181534,1714551080574,-500.0,0.00068493,120]
[325181535,1714551080581,-500.0,0.00068493,120]
[325181536,1714551080590,-500.0,0.00068493,120]
[325181537,1714551080598,-3743.38,0.00068493,120]
[325181538,1714551080606,-424.909523,0.00068493,120]
[325181539,1714551080613,-500.0,0.00068493,120]
[325181540,1714551080621,-639.76470525,0.00068493,120]
[325181541,1714551080628,-500.0,0.00068493,120]
[325181542,1714551080635,-500.0,0.00068493,120]
[325181543,1714551080643,-500.0,0.00068493,120]
[325181544,1714551080652,-500.0,0.00068493,120]
[325181545,1714551080661,-500.0,0.00068493,120]
[325181546,1714551080669,-500.0,0.00068493,120]
[325181547,1714551080678,-500.0,0.00068493,120]
[325181548,1714551080687,-500.0,0.00068493,120]
[325181549,1714551080695,-500.0,0.00068493,120]
[325181550,1714551080707,-1044.56,0.00068493,120]
[325181551,1714551080718,-500.0,0.00068493,120]
[325181552,1714551080726,-500.0,0.00068493,120]
[325181553,1714551080733,-1909.75,0.00068493,120]
[325181554,1714551080741,-500.0,0.00068493,120]
[325181555,1714551080750,-503.06753168,0.00068493,120]
[325181556,1714551080762,-6565.057165,0.00068493,14]
[325181557,1714551080770,-500.0,0.00068493,120]
[325181558,1714551080778,-6565.057159,0.00068493,14]
[325181559,1714551080787,-377.9495604,0.00068493,120]
[325181560,1714551080795,-251.613386,0.00068493,120]
[325181561,1714551080804,-304.968756,0.00068493,60]
[325181562,1714551080811,-500.0,0.00068493,120]
[325181563,1714551080819,-501.04,0.00068493,120]
[325181564,1714551080827,-251.613385,0.00068493,120]
[325181565,1714551080835,-304.96876,0.00068493,60]
[325181566,1714551080844,-500.0,0.00068493,120]
[325181567,1714551080852,-294.868174,0.00068493,120]
[325181568,1714551080861,-500.0,0.00068493,120]
[325181569,1714551080869,-294.868173,0.00068493,120]
[325181570,1714551080878,-8117.03,0.00068493,120]
[325181571,1714551080886,-753.05,0.00068493,120]
[325181572,1714551080894,-503.05035191,0.00068493,120]
[325181573,1714551080904,-154.410289,0.00068493,120]
[325181574,1714551080914,-500.0,0.00068493,120]
[325181575,1714551080921,-500.0,0.00068493,120]
[325181576,1714551080929,-500.0,0.00068493,120]
[325181577,1714551080940,-500.0,0.00068493,120]
[325181578,1714551080948,-180.805915,0.00068493,120]
[325181579,1714551080957,-530.19570087,0.00068493,120]
[325181580,1714551080967,-1110.2,0.00068493,120]
[325181581,1714551080975,-3650.14,0.00068493,120]
[325181582,1714551080982,-180.805906,0.00068493,120]
[325181583,1714551080991,-500.0,0.00068493,120]
[325181584,1714551081003,-500.0,0.00068493,120]
[325181585,1714551081012,-500.0,0.00068493,120]
[325181586,1714551081020,-500.0,0.00068493,120]
[325181587,1714551081028,-1333.310725,0.00068493,120]
[325181588,1714551081035,-500.0,0.00068493,120]
[325181589,1714551081042,-1002.97,0.00068493,120]
[325181590,1714551081050,-500.0,0.00068493,120]
[325181591,1714551081057,-1333.31072,0.00068493,120]
[325181592,1714551081066,-500.0,0.00068493,120]
[325181593,1714551081074,-501.87296289,0.00068493,120]
[325181594,1714551081081,-4739.82,0.00068493,120]
[325181595,1714551081089,-500.0,0.00068493,120]
[325181596,1714551081097,-500.0,0.00068493,120]
[325181597,1714551081105,-500.0,0.00068493,120]
[325181598,1714551081113,-500.0,0.00068493,120]
[325181599,1714551081121,-500.0,0.00068493,120]
[325181600,1714551081130,-504.71483025,0.00068493,120]
[325181601,1714551081138,-1930.84,0.00068493,120]
[325181602,1714551081145,-500.0,0.00068493,120]
[325181603,1714551081154,-1668.37392,0.00068493,120]
[325181604,1714551081161,-1194.01,0.00068493,120]
[325181605,1714551081171,-500.0,0.00068493,120]
[325181606,1714551081178,-1668.37392383,0.00068493,120]
[325181607,1714551081189,-500.0,0.00068493,60]
[325181608,1714551081198,-1686.951195,0.00068493,120]
[325181609,1714551081207,-500.0,0.00068493,120]
[325181610,1714551081216,-500.0,0.00068493,120]
[325181611,1714551081225,-500.0,0.00068493,120]
[325181612,1714551081233,-1686.9512,0.00068493,120]
[325181613,1714551081243,-1273.052323,0.00068493,30]
[325181614,1714551081251,-5566.462389,0.00068493,120]
[325181615,1714551081259,-437.723155,0.00068493,120]
[325181616,1714551081268,-5566.46238437,0.00068493,120]
[325181617,1714551081275,-500.0,0.00068493,120]
[325181618,1714551081282,-1273.05233,0.00068493,30]
[325181619,1714551081290,-500.0,0.00068493,120]
[325181620,1714551081298,-1311.94,0.00068493,120]
[325181621,1714551081305,-437.723158,0.00068493,120]
[325181622,1714551081313,-843.84,0.00068493,120]
[325181623,1714551081320,-500.0,0.00068493,120]
[325181624,1714551081328,-502.26995536,0.00068493,120]
[325181625,1714551081335,-278.052754,0.00068493,120]
[325181626,1714551081341,-500.0,0.00068493,120]
[325181627,1714551081348,-500.0,0.00068493,120]
[325181628,1714551081357,-278.052759,0.00068493,120]
[325181629,1714551081363,-500.0,0.00068493,120]
[325181630,1714551081370,-2324.106982,0.00068493,120]
[325181631,1714551081377,-503.52158863,0.00068493,120]
[325181632,1714551081383,-503.63624467,0.00068493,120]
[325181633,1714551081390,-2324.10698,0.00068493,120]
[325181634,1714551081398,-1833.01,0.00068493,120]
[325181635,1714551081405,-500.0,0.00068493,120]
[325181636,1714551081412,-477.38311973,0.00068493,120]
[325181637,1714551081419,-502.39990858,0.00068493,120]
[325181638,1714551081426,-500.0,0.00068493,120]
[325181639,1714551081433,-2376.416281,0.00068493,120]
[325181640,1714551081446,-500.0,0.00068493,120]
[325181641,1714551081455,-500.0,0.00068493,120]
[325181642,1714551081464,-2376.416283,0.00068493,120]
[325181643,1714551081473,-500.0,0.00068493,120]
[325181644,1714551081480,-8858.35,0.00068493,120]
[325181645,1714551081487,-3795.82,0.00068493,120]
[325181646,1714551081496,-174.858695,0.00068493,120]
[325181647,1714551081506,-174.858703,0.00068493,120]
[325181648,1714551081515,-2186.1,0.00068493,120]
[325181649,1714551081525,-500.0,0.00068493,120]
[325181650,1714551081535,-500.0,0.00068493,120]
[325181651,1714551081544,-500.31336958,0.00068493,120]
[325181652,1714551081554,-500.0,0.00068493,120]
[325181653,1714551081563,-500.0,0.00068493,120]
[325181654,1714551081573,-500.0,0.00068493,120]
[325181655,1714551081582,-500.0,0.00068493,120]
[325181656,1714551081592,-500.0,0.00068493,60]
[325181657,1714551081601,-13472.56,0.00068493,120]
[325181658,1714551081611,-500.0,0.00068493,120]
[325181659,1714551081620,-18297.18,0.00068493,120]
[325181660,1714551081630,-502.32899715,0.00068493,120]
[325181661,1714551081639,-500.0,0.00068493,120]
[325181662,1714551081648,-500.0,0.00068493,120]
[325181663,1714551081658,-500.0,0.00068493,120]
[325181664,1714551081667,-250.0,0.00068493,120]
[325181665,1714551081677,-833.3,0.00068493,21]
[325181666,1714551081689,-500.0,0.00068493,120]
[325181667,1714551081710,-750.0,0.00068493,120]
[325181668,1714551081722,-1000.0,0.00068493,120]
[325181669,1714551081732,-1250.0,0.00068493,120]
[325181670,1714551081742,-258.32913404,0.00068493,120]
[325181671,1714551081753,-518.91,0.00068493,7]
[325181672,1714551081763,-500.0,0.00068493,120]
[325181673,1714551081773,-1015.92,0.00068493,120]
[325181674,1714551081782,-500.0,0.00068493,120]
[325181675,1714551081794,-151.0,0.00068493,120]
[325181676,1714551081805,-151.0,0.0006887,120]
[325181677,1714551081815,-151.0,0.0006887,120]
[325181678,1714551081825,-151.0,0.0006887,3]
[325181679,1714551081835,-701.315446,0.0006887,120]
[325181680,1714551081844,-301.175704,0.0006887,120]
[325181681,1714551081854,-701.315446,0.0006887,120]
[325181682,1714551081864,-301.175704,0.0006887,120]
[325181683,1714551081874,-274.403145,0.0006887,120]
[325181684,1714551081883,-274.403145,0.0006887,120]
[325181685,1714551081893,-470.15764,0.0006887,120]
[325181686,1714551081902,-470.15764,0.0006887,120]
[325181687,1714551081912,-151.0,0.0006887,120]
[325181688,1714551081922,-334.842218,0.0006887,120]
[325181689,1714551081932,-334.842218,0.0006887,120]
[325181690,1714551082107,-229.384043,0.0006887,120]
[325181691,1714551082118,-229.384037,0.0006887,120]
[325181692,1714551082127,-228.446791,0.0006887,120]
[325181693,1714551082137,-228.446791,0.0006887,120]
[325181694,1714551082147,-1451.004861,0.0006887,120]
[325181695,1714551082156,-1451.004865,0.0006887,120]
[325181696,1714551082166,-156.89530931,0.0006895,120]
[325181697,1714551082175,-309.21154833,0.00069,7]
[325181698,1714551082184,-50872.12257919,0.00069,7]
[325181699,1714551082199,-284.157297,0.00069,120]
[325181700,1714551082209,-284.157297,0.00069,120]
[325181701,1714551082218,-1484.39,0.00069041,120]
[325181702,1714551082228,-151.0,0.00069096,120]
[325181703,1714551082237,-2000.0,0.00069125,120]
[325181704,1714551082246,-162.628302,0.00069224,120]
[325181705,1714551082255,-151.0,0.00069699,120]
[325181706,1714551082265,-156.89530931,0.00069718,120]
[325181707,1714551082275,-1484.39,0.00069863,120]
[325181708,1714551082285,-1256.18,0.00069863,120]
[325181709,1714551082294,-1000.0,0.00070099,120]
[325181710,1714551082302,-151.0,0.00070301,120]
[325181711,1714551082311,-10000.0,0.00070678,120]
[325181712,1714551082321,-1484.39,0.00070684,120]
[325181713,1714551082331,-151.0,0.00070904,120]
[325181714,1714551082340,-551.05069403,0.00071232,120]
[325181715,1714551082350,-500.0,0.00071232,120]
[325181716,1714551082360,-500.0,0.00071232,120]
[325181717,1714551082369,-680.26,0.00071232,120]
[325181718,1714551082378,-500.0,0.00071232,120]
[325181719,1714551082388,-500.0,0.00071232,120]
[325181720,1714551082398,-500.0,0.00071232,120]
[325181721,1714551082407,-500.0,0.00071232,120]
[325181722,1714551082418,-500.0,0.00071232,120]
[325181723,1714551082427,-268.40987825,0.00071232,120]
[325181724,1714551082440,-500.0,0.00071232,120]
[325181725,1714551082450,-500.0,0.00071232,120]
[325181726,1714551082459,-500.0,0.00071232,120]
[325181727,1714551082468,-500.0,0.00071232,120]
[325181728,1714551082478,-500.0,0.00071232,120]
[325181729,1714551082487,-501.89017585,0.00071232,120]
[325181730,1714551082496,-500.0,0.00071232,120]
[325181731,1714551082506,-392.10624504,0.00071232,120]
[325181732,1714551082515,-500.0,0.00071232,120]
[325181733,1714551082524,-500.0,0.00071232,120]
[325181734,1714551082534,-500.0,0.00071232,120]
[325181735,1714551082543,-500.0,0.00071232,120]
[325181736,1714551082552,-500.0,0.00071232,120]
[325181737,1714551082562,-500.0,0.00071232,120]
[325181738,1714551082571,-888.73,0.00071232,2]
[325181739,1714551082580,-616.62836092,0.00071232,120]
[325181740,1714551082589,-500.0,0.00071232,120]
[325181741,1714551082598,-500.0,0.00071232,120]
[325181742,1714551082607,-500.0,0.00071232,120]
[325181743,1714551082617,-500.0,0.00071232,120]
[325181744,1714551082626,-515.82,0.00071232,120]
[325181745,1714551082635,-500.0,0.00071232,120]
[325181746,1714551082644,-2055.92,0.00071232,120]
[325181747,1714551082654,-500.0,0.00071232,120]
[325181748,1714551082663,-500.0,0.00071232,120]
[325181749,1714551082673,-500.0,0.00071232,120]
[325181750,1714551082682,-500.0,0.00071232,120]
[325181751,1714551082694,-504.0284564,0.00071232,120]
[325181752,1714551082704,-500.0,0.00071232,120]
[325181753,1714551082717,-1169.21,0.00071232,120]
[325181754,1714551082727,-500.0,0.00071232,120]
[325181755,1714551082737,-500.0,0.00071232,120]
[325181756,1714551082746,-504.72,0.00071232,120]
[325181757,1714551082757,-500.0,0.00071232,120]
[325181758,1714551082767,-500.0,0.00071232,120]